fUST/lending_fUST_20250729
["ID","MTS","AMOUNT","RATE_DAILY","PERIOD"]
[375743000,1753727456055,-551.12,0.00022465,2]
[375743001,1753727456064,-50017.67949562,0.0002249,7]
[375743002,1753727456190,-734425.37397414,0.0002249,7]
[375743003,1753727456199,-312.16666667,0.0002249,7]
[375743004,1753727456208,-5041.81830741,0.00022493,2]
[375743005,1753727456217,-972.678,0.00022516,2]
[375743006,1753727456226,-407.0,0.00022516,2]
[375743007,1753727456235,-424.33,0.00022516,2]
[375743008,1753727456244,-256.09,0.00022554,2]
[375743009,1753727456255,-1500.0,0.00022568,2]
[375743010,1753727456264,-246.40088443,0.000226,4]
[375743011,1753727456273,-295.157255,0.00022603,2]
[375743012,1753727456282,-537.0,0.00022646,2]
[375743013,1753727456292,-991.2,0.00022657,5]
[375743014,1753727456301,-220.123925,0.00022739,7]
[375743015,1753727456310,-151.0,0.00022739,7]
[375743016,1753727456319,-151.0,0.00022739,7]
[375743017,1753727456329,-957.5,0.00022739,2]
[375743018,1753727456338,-311.84551,0.00022739,7]
[375743019,1753727456347,-311.84551,0.00022739,7]
[375743020,1753727456357,-1284.67356,0.00022739,7]
[375743021,1753727456366,-151.0,0.00022739,7]
[375743022,1753727456378,-151.0,0.00022739,7]
[375743023,1753727456387,-460.0,0.00022739,2]
[375743024,1753727456396,-505.725128,0.00022739,7]
[375743025,1753727456406,-505.725128,0.00022739,7]
[375743026,1753727456415,-477.39,0.00022739,2]
[375743027,1753727456426,-473.98,0.00022739,2]
[375743028,1753727456435,-568.4,0.00022739,2]
[375743029,1753727456444,-151.0,0.00022739,7]
[375743030,1753727456453,-151.0,0.00022739,7]
[375743031,1753727456462,-3754.67,0.00022739,2]
[375743032,1753727456471,-556.91,0.00022739,2]
[375743033,1753727456481,-460.0,0.00022739,2]
[375743034,1753727456490,-460.0,0.00022739,2]
[375743035,1753727456499,-1937.6,0.00022739,2]
[375743036,1753727456509,-679.36,0.00022739,2]
[375743037,1753727456518,-559.55,0.00022739,2]
[375743038,1753727456527,-460.0,0.00022739,2]
[375743039,1753727456537,-1535.91,0.00022739,2]
[375743040,1753727456546,-844.17,0.00022739,2]
[375743041,1753727456555,-653.68,0.00022739,2]
[375743042,1753727456565,-460.0,0.00022739,2]
[375743043,1753727456576,-2162.66,0.00022739,2]
[375743044,1753727456586,-567.98,0.00022739,2]
[375743045,1753727456595,-987.81,0.00022739,2]
[375743046,1753727456604,-460.0,0.00022739,2]
[375743047,1753727456613,-460.0,0.00022739,2]
[375743048,1753727456625,-2847.33,0.00022739,2]
[375743049,1753727456634,-460.0,0.00022739,2]
[375743050,1753727456644,-1840.57,0.00022739,2]
[375743051,1753727456656,-460.0,0.00022739,2]
[375743052,1753727456666,-673.71,0.00022739,2]
[375743053,1753727456676,-460.0,0.00022739,2]
[375743054,1753727456685,-508.6,0.00022739,2]
[375743055,1753727456696,-3253.23,0.00022739,2]
[375743056,1753727456705,-593.84,0.00022739,2]
[375743057,1753727456717,-7497.21,0.00022739,2]
[375743058,1753727456728,-537.36,0.00022739,2]
[375743059,1753727456737,-460.0,0.00022739,2]
[375743060,1753727456747,-460.0,0.00022739,2]
[375743061,1753727456756,-460.0,0.00022739,2]
[375743062,1753727456766,-460.0,0.00022739,2]
[375743063,1753727456775,-893.94,0.00022739,2]
[375743064,1753727456785,-460.0,0.00022739,2]
[375743065,1753727456794,-465.79,0.00022739,2]
[375743066,1753727456803,-1485.96,0.00022739,2]
[375743067,1753727456813,-1966.72,0.00022739,2]
[375743068,1753727456822,-627.72,0.00022739,2]
[375743069,1753727456831,-509.67,0.00022739,2]
[375743070,1753727456841,-460.0,0.00022739,2]
[375743071,1753727456850,-1401.51,0.00022739,2]
[375743072,1753727456860,-3152.92,0.00022739,2]
[375743073,1753727456870,-2040.8,0.00022739,2]
[375743074,1753727456878,-551.12,0.00022739,2]
[375743075,1753727456888,-163.255368,0.00022762,4]
[375743076,1753727456897,-537.0,0.00022773,2]
[375743077,1753727456907,-226.0,0.00022775,2]
[375743078,1753727456917,-537.0,0.00022805,2]
[375743079,1753727456926,-560.0,0.00022807,2]
[375743080,1753727456936,-537.0,0.00022837,2]
[375743081,1753727456945,-163.255368,0.0002286,2]
[375743082,1753727456954,-537.0,0.00022899,2]
[375743083,1753727456963,-11665.39837505,0.000229,7]
[375743084,1753727456972,-49381.50782039,0.0002298,7]
[375743085,1753727456981,-12634.73134317,0.0002298,7]
[375743086,1753727456990,-328.073899,0.00023,7]
[375743087,1753727457002,-1395.88,0.00023,2]
[375743088,1753727457011,-503.81332379,0.00023,8]
[375743089,1753727457020,-500.0,0.00023,8]
[375743090,1753727457030,-160.0,0.00023,2]
[375743091,1753727457046,-256.09,0.00023,2]
[375743092,1753727457056,-332.25751443,0.00023,2]
[375743093,1753727457065,-957.5,0.00023013,2]
[375743094,1753727457074,-477.39,0.00023013,2]
[375743095,1753727457084,-473.98,0.00023013,2]
[375743096,1753727457093,-568.4,0.00023013,2]
[375743097,1753727457112,-3754.67,0.00023013,2]
[375743098,1753727457124,-556.91,0.00023013,2]
[375743099,1753727457133,-524.34094725,0.00023013,2]
[375743100,1753727457143,-460.0,0.00023013,2]
[375743101,1753727457152,-1937.6,0.00023013,2]
[375743102,1753727457161,-679.36,0.00023013,2]
[375743103,1753727457170,-559.55,0.00023013,2]
[375743104,1753727457179,-460.0,0.00023013,2]
[375743105,1753727457188,-1535.91,0.00023013,2]
[375743106,1753727457198,-844.17,0.00023013,2]
[375743107,1753727457207,-653.68,0.00023013,2]
[375743108,1753727457216,-460.0,0.00023013,2]
[375743109,1753727457226,-2162.66,0.00023013,2]
[375743110,1753727457235,-567.98,0.00023013,2]
[375743111,1753727457244,-987.81,0.00023013,2]
[375743112,1753727457253,-460.0,0.00023013,2]
[375743113,1753727457263,-460.0,0.00023013,2]
[375743114,1753727457272,-2847.33,0.00023013,2]
[375743115,1753727457282,-460.0,0.00023013,2]
[375743116,1753727457292,-1840.57,0.00023013,2]
[375743117,1753727457301,-460.0,0.00023013,2]
[375743118,1753727457311,-673.71,0.00023013,2]
[375743119,1753727457320,-460.0,0.00023013,2]
[375743120,1753727457330,-508.6,0.00023013,2]
[375743121,1753727457340,-3253.23,0.00023013,2]
[375743122,1753727457350,-593.84,0.00023013,2]
[375743123,1753727457359,-7497.21,0.00023013,2]
[375743124,1753727457368,-537.36,0.00023013,2]
[375743125,1753727457378,-460.0,0.00023013,2]
[375743126,1753727457387,-460.0,0.00023013,2]
[375743127,1753727457396,-460.0,0.00023013,2]
[375743128,1753727457406,-460.0,0.00023013,2]
[375743129,1753727457520,-893.94,0.00023013,2]
[375743130,1753727457530,-460.0,0.00023013,2]
[375743131,1753727457540,-465.79,0.00023013,2]
[375743132,1753727457550,-1485.96,0.00023013,2]
[375743133,1753727457560,-1966.72,0.00023013,2]
[375743134,1753727457569,-627.72,0.00023013,2]
[375743135,1753727457579,-509.67,0.00023013,2]
[375743136,1753727457588,-460.0,0.00023013,2]
[375743137,1753727457598,-1401.51,0.00023013,2]
[375743138,1753727457607,-3152.92,0.00023013,2]
[375743139,1753727457616,-2040.8,0.00023013,2]
[375743140,1753727457628,-551.12,0.00023013,2]
[375743141,1753727457637,-537.0,0.00023023,2]
[375743142,1753727457651,-991.2,0.0002303,5]
[375743143,1753727457660,-5041.81830741,0.00023039,2]
[375743144,1753727457670,-1000.0,0.00023083,5]
[375743145,1753727457679,-3031.72,0.000231,7]
[375743146,1753727457688,-150.0,0.00023106,30]
[375743147,1753727457700,-2000.0,0.00023116,2]
[375743148,1753727457709,-163.255368,0.0002312,5]
[375743149,1753727457719,-200.0,0.00023123,15]
[375743150,1753727457729,-200.0,0.00023123,15]
[375743151,1753727457739,-200.0,0.00023123,15]
[375743152,1753727457748,-200.0,0.00023123,15]
[375743153,1753727457757,-200.0,0.00023123,15]
[375743154,1753727457766,-200.0,0.00023123,15]
[375743155,1753727457775,-366.0,0.00023123,15]
[375743156,1753727457784,-2200.0,0.00023155,2]
[375743157,1753727457793,-454.28546416,0.00023161,2]
[375743158,1753727457802,-620.09585093,0.0002322,2]
[375743159,1753727457812,-333.62,0.00023281,2]
[375743160,1753727457822,-957.5,0.00023287,2]
[375743161,1753727457831,-500.0,0.00023287,2]
[375743162,1753727457840,-477.39,0.00023287,2]
[375743163,1753727457849,-473.98,0.00023287,2]
[375743164,1753727457865,-568.4,0.00023287,2]
[375743165,1753727457876,-3754.67,0.00023287,2]
[375743166,1753727457885,-500.0,0.00023287,2]
[375743167,1753727457894,-500.0,0.00023287,2]
[375743168,1753727457904,-500.0,0.00023287,2]
[375743169,1753727457913,-500.0,0.00023287,2]
[375743170,1753727457923,-500.0,0.00023287,2]
[375743171,1753727457932,-500.0,0.00023287,2]
[375743172,1753727457941,-500.0,0.00023287,2]
[375743173,1753727457950,-500.0,0.00023287,2]
[375743174,1753727457959,-500.0,0.00023287,2]
[375743175,1753727457968,-500.0,0.00023287,2]
[375743176,1753727457978,-500.0,0.00023287,2]
[375743177,1753727457987,-500.0,0.00023287,2]
[375743178,1753727457996,-500.0,0.00023287,2]
[375743179,1753727458005,-509.37948221,0.00023287,2]
[375743180,1753727458014,-500.0,0.00023287,2]
[375743181,1753727458023,-556.91,0.00023287,2]
[375743182,1753727458032,-460.0,0.00023287,2]
[375743183,1753727458041,-1937.6,0.00023287,2]
[375743184,1753727458051,-679.36,0.00023287,2]
[375743185,1753727458060,-559.55,0.00023287,2]
[375743186,1753727458070,-460.0,0.00023287,2]
[375743187,1753727458079,-1535.91,0.00023287,2]
[375743188,1753727458089,-844.17,0.00023287,2]
[375743189,1753727458109,-653.68,0.00023287,2]
[375743190,1753727458118,-460.0,0.00023287,2]
[375743191,1753727458129,-2162.66,0.00023287,2]
[375743192,1753727458138,-567.98,0.00023287,2]
[375743193,1753727458147,-987.81,0.00023287,2]
[375743194,1753727458156,-460.0,0.00023287,2]
[375743195,1753727458165,-460.0,0.00023287,2]
[375743196,1753727458174,-2847.33,0.00023287,2]
[375743197,1753727458183,-172.00771924,0.00023287,2]
[375743198,1753727458192,-1840.57,0.00023287,2]
[375743199,1753727458201,-460.0,0.00023287,2]
[375743200,1753727458211,-673.71,0.00023287,2]
[375743201,1753727458220,-428.85121217,0.00023287,2]
[375743202,1753727458229,-508.6,0.00023287,2]
[375743203,1753727458239,-3253.23,0.00023287,2]
[375743204,1753727458247,-593.84,0.00023287,2]
[375743205,1753727458256,-7497.21,0.00023287,2]
[375743206,1753727458266,-537.36,0.00023287,2]
[375743207,1753727458275,-460.0,0.00023287,2]
[375743208,1753727458284,-460.0,0.00023287,2]
[375743209,1753727458294,-460.0,0.00023287,2]
[375743210,1753727458303,-460.0,0.00023287,2]
[375743211,1753727458313,-893.94,0.00023287,2]
[375743212,1753727458322,-460.0,0.00023287,2]
[375743213,1753727458331,-465.79,0.00023287,2]
[375743214,1753727458340,-1485.96,0.00023287,2]
[375743215,1753727458349,-1966.72,0.00023287,2]
[375743216,1753727458359,-627.72,0.00023287,2]
[375743217,1753727458368,-509.67,0.00023287,2]
[375743218,1753727458378,-460.0,0.00023287,2]
[375743219,1753727458387,-1401.51,0.00023287,2]
[375743220,1753727458396,-3152.92,0.00023287,2]
[375743221,1753727458406,-2040.8,0.00023287,2]
[375743222,1753727458415,-551.12,0.00023287,2]
[375743223,1753727458424,-1311.82,0.000233,7]
[375743224,1753727458433,-537.0,0.00023331,2]
[375743225,1753727458442,-660.0,0.00023355,2]
[375743226,1753727458451,-537.0,0.00023373,2]
[375743227,1753727458460,-537.0,0.00023378,2]
[375743228,1753727458470,-12731.16676249,0.000234,7]
[375743229,1753727458484,-711.80323751,0.000234,7]
[375743230,1753727458493,-481.47425679,0.000234,2]
[375743231,1753727458504,-43833.98991882,0.000234,2]
[375743232,1753727458513,-991.2,0.00023404,5]
[375743233,1753727458528,-1800.0,0.000235,3]
[375743234,1753727458544,-163.255368,0.00023513,5]
[375743235,1753727458557,-163.255368,0.00023525,4]
[375743236,1753727458570,-957.5,0.00023561,2]
[375743237,1753727458585,-477.39,0.00023561,2]
[375743238,1753727458599,-473.98,0.00023561,2]
[375743239,1753727458612,-568.4,0.00023561,2]
[375743240,1753727458629,-3754.67,0.00023561,2]
[375743241,1753727458644,-556.91,0.00023561,2]
[375743242,1753727458662,-460.0,0.00023561,2]
[375743243,1753727458676,-1937.6,0.00023561,2]
[375743244,1753727458689,-679.36,0.00023561,2]
[375743245,1753727458705,-310.29918415,0.00023561,2]
[375743246,1753727458719,-559.55,0.00023561,2]
[375743247,1753727458735,-460.0,0.00023561,2]
[375743248,1753727458746,-1535.91,0.00023561,2]
[375743249,1753727458759,-844.17,0.00023561,2]
[375743250,1753727458773,-653.68,0.00023561,2]
[375743251,1753727458788,-460.0,0.00023561,2]
[375743252,1753727458801,-2162.66,0.00023561,2]
[375743253,1753727458815,-567.98,0.00023561,2]
[375743254,1753727458831,-167.96400746,0.00023561,2]
[375743255,1753727458848,-819.84599254,0.00023561,2]
[375743256,1753727458860,-49.9281299,0.00023561,2]
[375743257,1753727458876,-410.0718701,0.00023561,2]
[375743258,1753727458896,-460.0,0.00023561,2]
[375743259,1753727458917,-2847.33,0.00023561,2]
[375743260,1753727458928,-61.81688015,0.00023561,2]
[375743261,1753727458943,-1778.75311985,0.00023561,2]
[375743262,1753727458957,-460.0,0.00023561,2]
[375743263,1753727458968,-673.71,0.00023561,2]
[375743264,1753727458979,-508.6,0.00023561,2]
[375743265,1753727458992,-2530.02579989,0.00023561,2]
[375743266,1753727459256,-460.0,0.00019178,2]
[375743267,1753727459266,-460.0,0.00019178,2]
[375743268,1753727459276,-460.0,0.00019452,2]
[375743269,1753727459285,-460.0,0.00019726,2]
[375743270,1753727459295,-458.0,0.0002,2]
[375743271,1753727459304,-460.0,0.0002,2]
[375743272,1753727459314,-460.0,0.00020273,2]
[375743273,1753727459323,-460.0,0.00020547,2]
[375743274,1753727459332,-639.39,0.00021643,2]
[375743275,1753727459341,-548.41985281,0.00021917,2]
[375743276,1753727459354,-90.97014719,0.00021917,2]
[375743277,1753727459363,-639.39,0.00022191,2]
[375743278,1753727459374,-36.70178407,0.00022465,2]
[375743279,1753727459385,-602.68821593,0.00022465,2]
[375743280,1753727459395,-639.39,0.00022739,2]
[375743281,1753727459404,-639.39,0.00023013,2]
[375743282,1753727459413,-201.49193126,0.00023287,2]
[375743283,1753727459489,1381.06010594,0.000189,2]
[375743284,1753727459511,3159.62297959,0.000189,2]
[375743285,1753727459670,-410.63133996,0.00019178,2]
[375743286,1753727459680,-460.0,0.00019178,2]
[375743287,1753727459690,-460.0,0.00019452,2]
[375743288,1753727459937,-460.0,0.00019452,2]
[375743289,1753727459951,-460.0,0.00019726,2]
[375743290,1753727459963,-460.0,0.00019726,2]
[375743291,1753727459972,-460.0,0.0002,2]
[375743292,1753727459980,-460.0,0.0002,2]
[375743293,1753727459989,-460.0,0.00020273,2]
[375743294,1753727459998,-460.0,0.00020273,2]
[375743295,1753727460007,-173.75553439,0.00020547,2]
[375743296,1753727460017,-460.0,0.00020547,2]
[375743297,1753727460026,-460.0,0.00020821,2]
[375743298,1753727460035,-460.0,0.00020821,2]
[375743299,1753727460045,-460.0,0.00021095,2]
[375743300,1753727460054,-460.0,0.00021095,2]
[375743301,1753727460063,-460.0,0.00021369,2]
[375743302,1753727460073,-460.0,0.00021369,2]
[375743303,1753727460082,-460.0,0.00021643,2]
[375743304,1753727460091,-460.0,0.00021917,2]
[375743305,1753727460100,-284.2531776,0.00022191,2]
[375743306,1753727460109,-437.89806874,0.00023287,2]
[375743307,1753727460118,-723.20420011,0.00023561,2]
[375743308,1753727460129,-593.84,0.00023561,2]
[375743309,1753727460138,-7255.76697201,0.00023561,2]
[375743310,1753727460149,-241.44302799,0.00023561,2]
[375743311,1753727460159,-95.47941963,0.00023561,2]
[375743312,1753727460170,-441.88058037,0.00023561,2]
[375743313,1753727460180,-460.0,0.00023561,2]
[375743314,1753727460189,-460.0,0.00023561,2]
[375743315,1753727460199,-460.0,0.00023561,2]
[375743316,1753727460208,-460.0,0.00023561,2]
[375743317,1753727460218,-893.94,0.00023561,2]
[375743318,1753727460227,-460.0,0.00023561,2]
[375743319,1753727460236,-15.67941963,0.00023561,2]
[375743320,1753727460248,-450.11058037,0.00023561,2]
[375743321,1753727460258,-1485.96,0.00023561,2]
[375743322,1753727460267,-1966.72,0.00023561,2]
[375743323,1753727460277,-627.72,0.00023561,2]
[375743324,1753727460286,-509.67,0.00023561,2]
[375743325,1753727460295,-460.0,0.00023561,2]
[375743326,1753727460304,-1363.36921306,0.00023561,2]
[375743327,1753727460315,-38.14078694,0.00023561,2]
[375743328,1753727460325,-216.31781912,0.00023561,2]
[375743329,1753727460490,-460.0,0.00019178,2]
[375743330,1753727460499,-218.92998736,0.00019178,2]
[375743331,1753727460511,-241.07001264,0.00019178,2]
[375743332,1753727460520,-460.0,0.00019178,2]
[375743333,1753727460530,-265.84519679,0.00019452,2]
[375743334,1753727460539,-460.0,0.00021643,2]
[375743335,1753727460548,-460.0,0.00021917,2]
[375743336,1753727460558,-2936.60218088,0.00023561,2]
[375743337,1753727460567,-2040.8,0.00023561,2]
[375743338,1753727460576,-551.12,0.00023561,2]
[375743339,1753727460585,-275.91522497,0.00023561,2]
[375743340,1753727460595,-639.39,0.00023561,2]
[375743341,1753727460605,-5041.81830741,0.00023586,2]
[375743342,1753727460616,-3252.1593871,0.00023616,2]
[375743343,1753727460627,-256.09,0.00023661,2]
[375743344,1753727460637,-1134.13605867,0.00023664,2]
[375743345,1753727460646,-752.14,0.00023708,3]
[375743346,1753727460658,-150.0,0.00023743,2]
[375743347,1753727460667,-993.5248125,0.00023753,3]
[375743348,1753727460676,-537.0,0.00023763,2]
[375743349,1753727460686,-991.2,0.00023778,6]
[375743350,1753727460697,-537.0,0.00023791,2]
[375743351,1753727460707,-752.14,0.00023808,2]
[375743352,1753727460717,-151.0,0.00023835,7]
[375743353,1753727460726,-151.0,0.00023835,7]
[375743354,1753727460736,-957.5,0.00023835,2]
[375743355,1753727460746,-311.84551,0.00023835,7]
[375743356,1753727460756,-311.84551,0.00023835,7]
[375743357,1753727460765,-1284.67356,0.00023835,7]
[375743358,1753727460774,-151.0,0.00023835,7]
[375743359,1753727460784,-151.0,0.00023835,7]
[375743360,1753727460793,-505.725128,0.00023835,7]
[375743361,1753727460803,-505.725128,0.00023835,7]
[375743362,1753727460812,-323.52688578,0.00023835,2]
[375743363,1753727460828,-153.86311422,0.00023835,2]
[375743364,1753727460837,-148.23691159,0.00023835,2]
[375743365,1753727461232,5000.0,0.000189,2]
[375743366,1753727462352,1840.37702041,0.00018726,2]
[375743367,1753727462374,4733.19922179,0.00018726,2]
[375743368,1753727462835,300.0,0.00018899,2]
[375743369,1753727464943,4966.80077821,0.000189,2]
[375743370,1753727464966,33.19922179,0.000189,2]
[375743371,1753727480983,5000.0,0.000189,2]
[375743372,1753727496087,4966.80077821,0.000189,2]
[375743373,1753727496110,33.19922179,0.000189,2]
[375743374,1753727497872,150.0,0.00021987,30]
[375743375,1753727500103,244.965412,0.00018603,2]
[375743376,1753727500508,535.14033611,0.00018749,2]
[375743377,1753727512177,5000.0,0.000189,2]
[375743381,1753727529946,4186.6950301,0.000189,2]
[375743382,1753727529970,813.3049699,0.000189,2]
[375743384,1753727544705,1016.6441445,0.00018899,2]
[375743385,1753727545377,5000.0,0.000189,2]
[375743386,1753727561420,3170.0508856,0.000189,2]
[375743387,1753727561445,1829.9491144,0.000189,2]
[375743389,1753727577056,5000.0,0.000189,2]
[375743391,1753727586784,150.0,0.0002185,30]
[375743392,1753727587201,150.0,0.0002289,30]
[375743393,1753727592403,3170.0508856,0.000189,2]
[375743394,1753727592425,1829.9491144,0.000189,2]
[375743395,1753727608150,5000.0,0.000189,2]
[375743397,1753727623468,3170.0508856,0.000189,2]
[375743398,1753727623492,1829.9491144,0.000189,2]
[375743399,1753727639336,5000.0,0.000189,2]
[375743402,1753727656456,3170.0508856,0.000189,2]
[375743403,1753727656478,1829.9491144,0.000189,2]
[375743405,1753727665611,150.0,0.00022059,30]
[375743406,1753727672853,5000.0,0.000189,2]
[375743407,1753727687815,3170.0508856,0.000189,2]
[375743408,1753727687837,1829.9491144,0.000189,2]
[375743410,1753727703771,5000.0,0.000189,2]
[375743411,1753727715514,3170.0508856,0.00018176,2]
[375743412,1753727715536,6829.9491144,0.00018176,2]
[375743413,1753727719182,3170.0508856,0.000189,2]
[375743414,1753727719205,1829.9491144,0.000189,2]
[375743415,1753727732048,196.648401,0.00018321,2]
[375743416,1753727732261,196.648401,0.00018321,120]
[375743417,1753727734357,5000.0,0.000189,2]
[375743419,1753727750769,2973.4024846,0.000189,2]
[375743420,1753727750958,2026.5975154,0.000189,2]
[375743421,1753727766354,5000.0,0.000189,2]
[375743428,1753727778234,2973.4024846,0.00018176,2]
[375743429,1753727778257,900.3465354,0.00018176,2]
[375743430,1753727782017,5000.0,0.000189,2]
[375743431,1753727788082,315.7812952,0.00018176,2]
[375743432,1753727797751,3783.8721694,0.000189,2]
[375743433,1753727797779,1216.1278306,0.000189,2]
[375743434,1753727802467,345.58074286,0.00018601,2]
[375743436,1753727812958,5000.0,0.000189,2]
[375743438,1753727828607,3438.29142654,0.000189,2]
[375743439,1753727828631,1561.70857346,0.000189,2]
[375743440,1753727832575,150.0,0.00022657,30]
[375743442,1753727843995,5000.0,0.000189,2]
[375743443,1753727861897,3438.29142654,0.000189,2]
[375743444,1753727861921,1561.70857346,0.000189,2]
[375743446,1753727876896,5000.0,0.000189,2]
[375743447,1753727893013,3438.29142654,0.000189,2]
[375743448,1753727893039,1561.70857346,0.000189,2]
[375743449,1753727905954,150.0,0.00021311,30]
[375743450,1753727906377,150.0,0.00022326,30]
[375743453,1753727908798,5000.0,0.000189,2]
[375743454,1753727925297,3438.29142654,0.000189,2]
[375743455,1753727925322,1561.70857346,0.000189,2]
[375743456,1753727940537,5000.0,0.000189,2]
[375743458,1753727956197,3438.29142654,0.000189,2]
[375743459,1753727956218,1561.70857346,0.000189,2]
[375743460,1753727971213,234.86092415,0.00018878,2]
[375743461,1753727971967,5000.0,0.000189,2]
[375743463,1753727987367,150.0,0.00021337,30]
[375743464,1753727987821,3203.43050239,0.000189,2]
[375743465,1753727987855,1796.56949761,0.000189,2]
[375743466,1753727987887,150.0,0.00022353,30]
[375743467,1753728004683,5000.0,0.000189,2]
[375743469,1753728021383,3203.43050239,0.000189,2]
[375743470,1753728021406,1796.56949761,0.000189,2]
[375743472,1753728038511,5000.0,0.000189,2]
[375743473,1753728054583,3203.43050239,0.000189,2]
[375743474,1753728054607,1796.56949761,0.000189,2]
[375743475,1753728066954,150.0,0.00021203,30]
[375743476,1753728067352,150.0,0.00022213,30]
[375743478,1753728070301,5000.0,0.000189,2]
[375743479,1753728086365,3203.43050239,0.000189,2]
[375743480,1753728086389,1796.56949761,0.000189,2]
[375743481,1753728102043,5000.0,0.000189,2]
[375743482,1753728104422,505.454481,0.00018595,2]
[375743483,1753728104794,346.5202826,0.00018597,2]
[375743486,1753728118135,2351.45573879,0.000189,2]
[375743487,1753728118158,2648.54426121,0.000189,2]
[375743488,1753728133560,5000.0,0.000189,2]
[375743489,1753728148222,384.277481,0.00013699,2]
[375743490,1753728149297,1967.17825779,0.000189,2]
[375743491,1753728149319,3032.82174221,0.000189,2]
[375743492,1753728149509,150.0,0.00021344,30]
[375743493,1753728149921,150.0,0.00022361,30]
[375743496,1753728165141,5000.0,0.000189,2]
[375743498,1753728181281,1967.17825779,0.000189,2]
[375743499,1753728181305,3032.82174221,0.000189,2]
[375743500,1753728186163,397.0234505,0.00018174,2]
[375743502,1753728188842,6570.15480729,0.00018174,2]
[375743503,1753728188865,10000.0,0.00018174,2]
[375743504,1753728188891,8329.84519271,0.00018174,2]
[375743505,1753728196907,1670.15480729,0.000189,2]
[375743506,1753728196931,3329.84519271,0.000189,2]
[375743507,1753728213579,5000.0,0.000189,2]
[375743509,1753728228746,150.0,0.00021778,30]
[375743510,1753728229149,150.0,0.00022815,30]
[375743511,1753728229179,1670.15480729,0.000189,2]
[375743512,1753728229202,3329.84519271,0.000189,2]
[375743514,1753728244735,5000.0,0.000189,2]
[375743516,1753728260015,1670.15480729,0.000189,2]
[375743517,1753728260040,1188.83036644,0.000189,2]
[375743519,1753728305984,251.99981873,0.000189,2]
[375743520,1753728306801,150.0,0.00021822,30]
[375743521,1753728307246,150.0,0.00022861,30]
[375743524,1753728345254,-400.0,0.00018978,2]
[375743525,1753728345277,-399.77847963,0.00018978,2]
[375743526,1753728345297,-352.38088066,0.00019078,2]
[375743527,1753728345318,-178.5367691,0.00019078,2]
[375743528,1753728345340,-202.04224927,0.00019123,3]
[375743529,1753728345360,-2425.44640117,0.0001917,3]
[375743531,1753728377803,164.0,0.00018575,3]
[375743532,1753728389184,150.0,0.00021338,30]
[375743533,1753728389621,150.0,0.00022354,30]
[375743535,1753728406057,258.45761766,0.00018598,2]
[375743536,1753728414183,763.42922978,0.000189,2]
[375743537,1753728435110,-531.39981094,0.0001917,3]
[375743538,1753728435132,-166.06652909,0.0001917,2]
[375743539,1753728436101,-1033.93347091,0.0001917,2]
[375743540,1753728436121,-244.0,0.00019171,2]
[375743541,1753728436141,-187.0,0.00019171,2]
[375743542,1753728436162,-300.0,0.00019171,2]